bitfinex/quotes_ETHUSD_20250904
["timestamp","ask_amount","ask_price","bid_price","bid_amount"]
[1757015706126,4.057,4284.3,4284.2,0.21822286]
[1757015706745,0.025,4284.8,4284.3,2.33410358]
[1757015706922,0.025,4284.8,4284.5,2.33397928]
[1757015707119,0.025,4284.8,4284.6,0.21822286]
[1757015707348,0.025,4284.8,4284.7,0.21822286]
[1757015707551,0.026,4284.8,4284.7,0.21822286]
[1757015709350,0.125,4284.8,4284.7,0.21822286]
[1757015709925,0.1484,4284.8,4284.7,0.21822286]
[1757015710249,0.2652,4284.8,4284.7,0.21822286]
[1757015711020,0.7462,4284.8,4284.7,0.21822286]
[1757015711240,0.1662,4284.8,4284.7,0.53102286]
[1757015711918,0.1662,4284.8,4284.7,3.77080854]
[1757015712123,0.0494,4284.8,4284.7,3.77080854]
[1757015712337,0.0494,4284.8,4284.7,3.88760854]
[1757015712541,0.0494,4284.8,4284.7,4.5097681]
[1757015713422,0.0494,4284.8,4284.7,5.3017681]
[1757015713625,0.0494,4284.8,4284.7,12.2587681]
[1757015714138,0.0494,4284.8,4284.7,12.3755681]
[1757015717552,1e-08,4284.8,4284.7,13.4755681]
[1757015718854,3.192,4285.8,4284.7,13.4755681]
[1757015718855,0.025,4285.8,4285.7,3.12534111]
[1757015719057,0.025,4285.8,4285.7,11.09026397]
[1757015719273,0.27946156,4287.4,4286.7,2.33279679]
[1757015719455,0.27946156,4287.4,4286.7,2.55101965]
[1757015719653,0.27946156,4287.4,4286.7,3.29281965]
[1757015720161,0.27946156,4287.4,4286.7,3.29256467]
[1757015720546,0.27946156,4287.4,4286.7,3.07459679]
[1757015721165,0.27946156,4287.4,4286.7,2.64559679]
[1757015721365,0.27946156,4287.4,4286.7,2.86354783]
[1757015721667,0.27946156,4287.4,4286.7,2.33279679]
[1757015722332,0.27946156,4287.4,4286.3,0.9059]
[1757015722539,0.27946156,4287.4,4286.7,2.33279679]
[1757015722858,0.27946156,4287.4,4286.7,0.21793489]
[1757015723058,0.124,4286.8,4286.7,2.55073168]
[1757015723371,0.124,4286.8,4286.7,0.21793489]
[1757015723559,0.124,4286.8,4286.7,2.55073168]
[1757015724068,0.025,4286.8,4286.7,3.41857795]
[1757015724266,0.025,4286.8,4286.7,4.32447795]
[1757015724468,0.025,4286.8,4286.7,8.28047795]
[1757015725238,0.025,4286.8,4286.7,12.07247795]
[1757015725447,1e-08,4286.8,4286.7,12.07247795]
[1757015726067,0.00100001,4286.8,4286.7,12.07247795]
[1757015726472,0.00100001,4286.8,4286.7,12.07547795]
[1757015726771,0.00100001,4286.8,4286.7,8.11647795]
[1757015726933,0.00100001,4286.8,4286.7,12.07547795]
[1757015727538,0.00100001,4286.8,4286.7,10.80557795]
[1757015728476,0.00100001,4286.8,4286.7,11.90557795]
[1757015728768,0.00100001,4286.8,4286.7,10.92237795]
[1757015729138,0.00100001,4286.8,4286.7,10.49337795]
[1757015729369,0.00100001,4286.8,4286.7,10.18057795]
[1757015729763,0.10000001,4286.8,4286.7,6.22257795]
[1757015729967,0.10000001,4286.8,4286.7,2.55073168]
[1757015730175,1.11440001,4286.8,4286.7,0.21793489]
[1757015730343,1.11440001,4286.8,4286.0,0.21696218]
[1757015730544,1.11440001,4286.8,4285.9,0.5978]
[1757015730545,0.99760001,4286.8,4286.5,2.33290269]
[1757015730944,0.1168,4286.6,4286.5,2.33290269]
[1757015731172,0.219,4286.6,4286.5,2.33290269]
[1757015731646,0.219,4286.6,4286.1,2.33307408]
[1757015731843,0.219,4286.6,4286.3,2.33298897]
[1757015732044,0.7,4286.6,4286.3,2.33298897]
[1757015732340,0.481,4286.5,4286.4,2.33296005]
[1757015732576,0.5863,4286.5,4286.4,2.33296005]
[1757015733082,0.1053,4286.5,4286.4,2.33296005]
[1757015733579,0.1053,4286.5,4286.3,2.33300682]
[1757015733762,0.1053,4286.5,4286.1,2.33306939]
[1757015734076,0.1053,4286.5,4285.9,2.33323222]
[1757015734077,0.1053,4286.5,4286.4,0.3128]
[1757015734247,1.72,4286.6,4286.5,2.33290563]
[1757015734442,1.72,4286.6,4286.5,3.29192852]
[1757015734644,0.00100001,4286.8,4286.7,2.33279679]
[1757015735069,0.00100001,4286.8,4286.7,3.76871968]
[1757015738453,0.00100001,4286.8,4286.7,3.29181968]
[1757015738775,0.00100001,4286.8,4286.7,2.55001968]
[1757015739169,0.00100001,4286.8,4286.7,2.84171968]
[1757015739560,0.00100001,4286.8,4286.7,2.55001968]
[1757015740252,0.00100001,4286.8,4286.7,3.8331901]
[1757015740558,0.00100001,4286.8,4286.7,10.6226901]
[1757015740746,0.00100001,4286.8,4286.7,11.0906901]
[1757015743975,0.00100001,4286.8,4286.7,11.2074901]
[1757015747081,0.00100001,4286.8,4286.7,10.7295901]
[1757015747256,0.00100001,4286.8,4286.7,6.7725901]
[1757015747458,0.00100001,4286.8,4286.7,10.7275901]
[1757015747766,0.00100001,4286.8,4286.7,5.9805901]
[1757015747957,0.10000001,4286.8,4286.7,3.5414901]
[1757015748156,0.10000001,4286.8,4286.7,2.55108123]
[1757015748480,0.00100001,4286.8,4286.7,7.39259485]
[1757015748678,0.00100001,4286.8,4286.7,8.64719485]
[1757015750086,0.00100001,4286.8,4286.7,7.85619485]
[1757015750289,0.00100001,4286.8,4286.7,9.72852224]
[1757015753268,0.00100001,4286.8,4286.7,9.25062224]
[1757015754184,0.00100001,4286.8,4286.7,8.49632224]
[1757015754390,0.56800001,4286.8,4286.7,2.66799485]
[1757015754566,0.00100001,4286.8,4286.7,2.84289485]
[1757015754762,0.00100001,4286.8,4286.7,3.30549485]
[1757015755191,0.00100001,4286.8,4286.7,2.55119485]
[1757015755567,0.10000001,4286.8,4286.7,2.55119485]
[1757015756391,0.10000001,4286.8,4286.7,3.04000435]
[1757015757277,0.00100001,4286.8,4286.7,3.04000435]
[1757015757778,0.10320001,4286.8,4286.7,3.04000435]
[1757015757962,0.00100001,4286.8,4286.7,3.04000435]
[1757015758368,0.31540001,4286.8,4286.7,3.04000435]
[1757015758669,0.00100001,4286.8,4286.7,3.04000435]
[1757015758996,0.31430001,4286.8,4286.7,3.04000435]
[1757015759771,0.00100001,4286.8,4286.7,3.04000435]
[1757015760164,0.10000001,4286.8,4286.7,3.04000435]
[1757015761374,0.00100001,4286.8,4286.7,3.04000435]
[1757015761572,0.00100001,4286.8,4286.7,9.03120435]
[1757015761999,0.00100001,4286.8,4286.7,12.03120435]
[1757015763715,0.00100001,4286.8,4286.7,17.98258774]
[1757015764304,0.00100001,4286.8,4286.7,17.76418968]
[1757015764513,0.00100001,4286.8,4286.7,17.88098968]
[1757015765180,0.00100001,4286.8,4286.7,18.58231343]
[1757015766878,0.00100001,4286.8,4286.7,11.69043004]
[1757015767086,0.00100001,4286.8,4286.7,12.15303004]
[1757015768186,0.00100001,4286.8,4286.7,10.69040629]
[1757015768387,0.10000001,4286.8,4286.7,9.89940629]
[1757015768814,0.00100001,4286.8,4286.7,9.89940629]
[1757015770917,0.10000001,4286.8,4286.7,9.89940629]
[1757015771692,0.00100001,4286.8,4286.7,9.89940629]
[1757015771891,0.00100001,4286.8,4286.7,10.64240629]
[1757015772196,0.00100001,4286.8,4286.7,12.25710629]
[1757015772608,0.00100001,4286.8,4286.7,13.35710629]
[1757015773118,0.025,4287.8,4287.7,2.33225272]
[1757015773322,0.025,4287.8,4287.7,2.79871041]
[1757015773520,0.124,4287.8,4287.7,2.79871041]
[1757015773721,0.025,4287.8,4287.7,7.98471041]
[1757015773920,0.025,4287.8,4287.7,11.77671041]
[1757015774824,0.025,4287.8,4287.7,11.29871041]
[1757015775418,0.025,4287.8,4287.7,11.77671041]
[1757015777206,0.4615,4289.0,4287.8,3.0]
[1757015777408,0.4615,4289.0,4287.9,12.4843158]
[1757015777833,0.4615,4289.0,4288.9,2.33160017]
[1757015778122,0.4615,4289.4,4289.3,2.33138274]
[1757015778327,0.7474,4289.4,4289.3,2.33138274]
[1757015778494,0.7474,4289.4,4288.9,2.33155085]
[1757015778693,0.7474,4289.4,4288.5,3.961]
[1757015778694,0.7474,4289.4,4288.6,2.33176327]
[1757015778927,0.7474,4289.4,4289.2,2.33139406]
[1757015779125,0.4615,4289.3,4289.2,2.33139406]
[1757015779329,0.7474,4289.3,4289.2,2.33139406]
[1757015779921,0.7474,4289.3,4289.1,2.33147922]
[1757015780122,0.4615,4289.2,4289.1,2.33147922]
[1757015780325,0.7446,4289.2,4288.7,2.33166185]
[1757015780627,0.4615,4289.1,4288.9,2.33159251]
[1757015780996,0.2831,4289.0,4288.9,2.33159251]
[1757015785232,0.1168,4289.1,4289.0,2.33154581]
[1757015785733,0.3971,4289.1,4289.0,2.33154581]
[1757015785931,0.1168,4289.1,4289.0,2.33154581]
[1757015786134,0.3971,4289.1,4289.0,2.33154581]
[1757015786331,0.1168,4289.1,4289.0,2.64654581]
[1757015786843,0.2158,4289.1,4289.0,2.33154581]
[1757015787601,0.2158,4289.1,4288.8,2.3316407]
[1757015787833,0.2158,4289.1,4288.5,4.9005]
[1757015788334,4.4155,4289.0,4288.4,0.1168]
[1757015788510,0.0999,4288.5,4288.1,2.33201751]
[1757015788710,0.1168,4288.2,4288.1,2.33201751]
[1757015788935,0.2175,4288.2,4288.1,2.33201751]
[1757015789137,0.2175,4288.2,4287.9,2.33214393]
[1757015789448,0.2175,4288.2,4288.0,2.33208136]
[1757015789623,0.679,4288.2,4288.0,2.33208136]
[1757015789942,0.2175,4288.2,4288.0,2.33208955]
[1757015790149,0.1016,4288.1,4288.0,2.33208955]
[1757015790508,1.719,4288.4,4287.8,0.025]
[1757015790708,0.1168,4287.9,4287.8,0.025]
[1757015792341,8.40032732,4287.9,4287.8,0.025]
[1757015792559,8.55402732,4287.9,4287.8,0.025]
[1757015794217,6.55664393,4287.9,4287.8,0.025]
[1757015797238,6.40294393,4287.9,4287.8,0.025]
[1757015798249,4.0708,4287.9,4287.8,0.025]
[1757015798451,6.40294393,4287.9,4287.8,0.025]
[1757015799659,4.0708,4287.9,4287.8,0.025]
[1757015800276,6.40294393,4287.9,4287.8,0.025]
[1757015800579,12.35432732,4287.9,4287.8,0.025]
[1757015803310,4.0708,4287.9,4287.8,0.025]
[1757015803871,6.40294393,4287.9,4287.8,0.025]
[1757015804881,12.35432732,4287.9,4287.8,0.025]
[1757015808324,15.35432732,4287.9,4287.8,0.025]
[1757015808483,15.50802732,4287.9,4287.8,0.025]
[1757015809310,27.76142332,4287.9,4287.8,0.025]
[1757015809513,51.07925671,4287.9,4287.8,1e-08]
[1757015809720,50.66244028,4287.9,4287.8,1e-08]
[1757015810288,49.23244028,4287.9,4287.8,1e-08]
[1757015810495,49.83771428,4287.9,4287.8,1e-08]
[1757015810693,49.62384228,4287.9,4287.8,1e-08]
[1757015810994,48.76255787,4287.9,4287.8,1e-08]
[1757015811232,44.10975387,4287.9,4287.8,1e-08]
[1757015811419,41.5065443,4287.9,4287.8,1e-08]
[1757015811606,41.2905443,4287.9,4287.8,1e-08]
[1757015811796,31.7971853,4287.9,4287.8,1e-08]
[1757015812523,22.6172973,4287.9,4287.2,0.004]
[1757015812725,11.90276678,4286.7,4285.8,0.025]
[1757015812915,11.28461561,4285.9,4285.8,0.025]
[1757015813114,15.35641561,4285.9,4285.8,0.025]
[1757015813291,15.722427,4285.9,4285.8,0.025]
[1757015814522,15.876127,4285.9,4285.8,0.025]
[1757015814690,15.722427,4285.9,4285.8,0.025]
[1757015815225,15.876127,4285.9,4285.8,0.025]
[1757015815796,21.45622357,4285.9,4285.8,0.025]
[1757015817694,21.30252357,4285.9,4285.8,0.025]
[1757015817894,20.93651218,4285.9,4285.8,0.025]
[1757015818310,20.64571061,4285.9,4285.8,0.025]
[1757015818904,16.69071061,4285.9,4285.8,0.025]
[1757015819128,20.64671061,4285.9,4285.8,0.025]
[1757015819633,10.73932722,4285.9,4285.8,0.025]
[1757015819795,9.28923222,4285.9,4285.8,1.2621]
[1757015820119,9.28923222,4285.9,4285.8,0.025]
[1757015820500,9.28923222,4285.9,4285.8,0.029]
[1757015821193,26.70520066,4285.9,4285.8,1e-08]
[1757015821393,25.39291047,4285.9,4285.8,1e-08]
[1757015821625,24.95567904,4285.9,4285.8,1e-08]
[1757015821824,2.33372228,4285.0,4284.9,0.004]
[1757015822035,14.06924466,4285.0,4284.9,0.004]
[1757015822329,11.01072228,4285.0,4284.9,1.2411]
[1757015822627,11.37680746,4285.0,4284.9,1.2411]
[1757015823805,9.04308518,4285.0,4284.9,1.2411]
[1757015824431,11.37680746,4285.0,4284.9,1.2411]
[1757015824596,4.72,4285.0,4284.9,1.2411]
[1757015824796,8.677,4285.0,4284.9,1.2411]
[1757015825000,11.01072228,4285.0,4284.9,1.2411]
[1757015825427,8.677,4285.0,4284.9,1.2411]
[1757015825719,11.01072228,4285.0,4284.9,1.2411]
[1757015825914,8.677,4285.0,4284.9,1.2411]
[1757015826124,11.01072228,4285.0,4284.9,1.2411]
[1757015826529,8.677,4285.0,4284.9,1.2411]
[1757015828232,1.72,4285.0,4284.9,1.2411]
[1757015828531,5.677,4285.0,4284.9,3.70188675]
[1757015828734,1.72,4285.0,4284.9,3.70188675]
[1757015828904,5.677,4285.0,4284.9,3.70188675]
[1757015829732,5.7938,4285.0,4284.9,3.70188675]
[1757015830046,1.72,4285.8,4285.4,2.33347308]
[1757015830201,3.957,4285.7,4285.5,0.903]
[1757015830401,0.1168,4285.6,4285.2,4.67307251]
[1757015830607,3.957,4285.5,4285.3,0.4337]
[1757015830850,3.957,4285.4,4285.3,0.4337]
[1757015831007,3.957,4285.4,4285.3,1.2122]
[1757015831436,4.0738,4285.4,4285.3,1.2122]
[1757015831930,4.0738,4285.4,4285.3,3.54575891]
[1757015832345,4.0738,4285.4,4285.3,1.2122]
[1757015832911,0.1168,4285.4,4285.3,3.54575891]
[1757015833115,1.72,4285.8,4285.5,2.33340958]
[1757015833361,3.957,4285.7,4285.5,2.33340958]
[1757015833550,0.1168,4285.6,4285.3,0.58852589]
[1757015833747,3.957,4285.5,4285.2,2.33949997]
[1757015834057,3.957,4285.5,4285.4,0.3092]
[1757015834255,3.957,4285.5,4285.4,1.2122]
[1757015836427,3.957,4285.5,4285.0,0.903]
[1757015836627,0.1168,4285.1,4285.0,0.4693]
[1757015836830,0.1168,4285.1,4284.9,0.004]
[1757015836831,4.0738,4285.1,4284.9,0.004]
[1757015837148,1.72,4285.0,4284.9,0.004]
[1757015837528,1.72,4285.0,4284.9,0.3132]
[1757015837965,1.72,4285.0,4284.9,1.2162]
[1757015838116,1.72,4285.0,4284.9,0.7469]
[1757015838320,1.72,4285.0,4284.9,0.004]
[1757015838736,4.05372228,4285.0,4284.9,0.004]
[1757015839123,1.72,4285.0,4284.9,0.3132]
[1757015839328,1.72,4285.0,4284.9,0.7469]
[1757015840480,1.72,4285.0,4284.9,0.004]
[1757015840772,1.72,4285.0,4284.9,1.2162]
[1757015845956,0.001,4285.5,4284.9,1.75075637]
[1757015846275,0.001,4285.5,4285.4,2.33350445]
[1757015846460,3.958,4285.5,4285.4,2.33350445]
[1757015846660,3.958,4285.5,4285.4,3.54570445]
[1757015849269,3.958,4285.5,4285.4,1.2122]
[1757015849451,3.958,4285.5,4285.4,3.54570445]
[1757015849976,0.001,4285.5,4285.4,0.7429]
[1757015850177,3.957,4285.5,4285.4,3.54570445]
[1757015850378,3.957,4285.5,4285.4,1.2122]
[1757015850579,3.957,4285.5,4284.9,0.004]
[1757015850970,2.33372228,4285.0,4284.9,0.004]
[1757015851175,8.00972228,4285.0,4284.9,0.004]
[1757015852176,11.00972228,4285.0,4284.9,0.004]
[1757015853665,11.16342228,4285.0,4284.9,0.004]
[1757015855262,7.05372228,4285.0,4284.9,0.004]
[1757015855470,11.00972228,4285.0,4284.9,0.004]
[1757015855983,11.12652228,4285.0,4284.9,0.004]
[1757015856484,11.28022228,4285.0,4284.9,0.004]
[1757015857291,7.17052228,4285.0,4284.9,0.004]
[1757015857488,11.12652228,4285.0,4284.9,0.004]
[1757015857864,7.17052228,4285.0,4284.9,0.004]
[1757015858186,11.12652228,4285.0,4284.9,0.004]
[1757015859587,7.05372228,4285.0,4284.9,0.2979]
[1757015859794,7.05372228,4285.0,4284.9,1.2339]
[1757015859795,8.7928,4285.0,4284.9,1.2339]
[1757015860292,11.12652228,4285.0,4284.9,1.2339]
[1757015861493,8.7928,4285.0,4284.9,1.2339]
[1757015863989,4.8368,4285.0,4284.9,1.2339]
[1757015864192,5.7928,4285.0,4284.9,1.45226083]
[1757015864893,5.7928,4285.0,4284.9,1.2339]
[1757015865279,5.7928,4285.0,4284.9,1.45229172]
[1757015865994,5.7928,4285.0,4284.9,0.22239172]
[1757015866200,8.12652228,4285.0,4284.9,0.004]
[1757015869690,11.12652228,4285.0,4284.9,0.004]
[1757015870390,11.28022228,4285.0,4284.9,0.004]
[1757015870862,11.30662228,4285.0,4284.9,0.004]
[1757015871192,11.15292228,4285.0,4284.9,0.004]
[1757015874190,11.15292228,4285.0,4284.9,1.2339]
[1757015874990,11.15292228,4285.0,4284.9,0.767]
[1757015875559,11.15292228,4285.0,4284.9,0.004]
[1757015876362,11.15292228,4285.0,4284.9,0.4731]
[1757015876582,11.15292228,4285.0,4284.9,0.767]
[1757015876792,4.8632,4285.0,4284.9,1.2339]
[1757015876985,11.15292228,4285.0,4284.9,1.2339]
[1757015878080,11.15292228,4285.0,4284.9,0.767]
[1757015878690,11.15292228,4285.0,4284.9,1.2339]
[1757015879580,11.15292228,4285.0,4284.9,0.004]
[1757015880002,7.19692228,4285.0,4284.9,0.004]
[1757015880196,11.15292228,4285.0,4284.9,0.767]
[1757015880400,11.15292228,4285.0,4284.9,0.004]
[1757015880587,11.03612228,4285.0,4284.9,0.004]
[1757015880800,7.08012228,4285.0,4284.9,0.767]
[1757015880984,11.03612228,4285.0,4284.9,0.004]
[1757015881808,7.08012228,4285.0,4284.9,0.004]
[1757015882015,11.03612228,4285.0,4284.9,0.004]
[1757015883586,18.62661528,4285.0,4284.9,0.004]
[1757015884319,23.61075528,4285.0,4284.9,0.004]
[1757015884526,23.39475528,4285.0,4284.9,0.004]
[1757015884814,18.57964628,4285.0,4284.9,0.004]
[1757015885016,12.45912228,4285.0,4284.9,0.767]
[1757015885193,16.41512228,4285.0,4284.9,1.2339]
[1757015885393,14.0814,4285.0,4284.9,1.2339]
[1757015885801,16.41512228,4285.0,4284.9,1.2339]
[1757015886304,14.0814,4285.0,4284.9,1.2339]
[1757015886506,16.41512228,4285.0,4284.9,1.2339]
[1757015888725,18.53813428,4285.0,4284.9,0.004]
[1757015889018,16.41512228,4285.0,4284.9,0.004]
[1757015890192,22.12286628,4285.0,4284.9,0.004]
[1757015890724,22.23966628,4285.0,4284.9,0.004]
[1757015890933,22.68416785,4285.0,4284.9,0.004]
[1757015891233,16.53092228,4285.0,4284.9,0.7353]
[1757015891629,12.57592228,4285.0,4284.9,1.1892]
[1757015891829,16.53092228,4285.0,4284.9,1.1892]
[1757015892033,16.53092228,4285.0,4284.9,0.004]
[1757015892742,12.57592228,4285.0,4284.9,0.004]
[1757015893046,16.53092228,4285.0,4284.9,0.004]
[1757015895738,16.53092228,4285.0,4284.9,0.7353]
[1757015896840,16.53092228,4285.0,4284.9,0.004]
[1757015897545,16.53092228,4285.0,4284.9,0.7353]
[1757015899443,16.8467893,4285.0,4284.9,0.7353]
[1757015899945,16.8467893,4285.0,4284.9,1.1892]
[1757015900344,7.55806702,4285.0,4284.9,1.1892]
[1757015900539,1.813,4285.0,4284.9,1.31142]
[1757015900739,4.203,4285.0,4284.9,3.64519675]
[1757015902212,0.838,4285.0,4284.9,3.64519675]
[1757015902416,3.838,4285.0,4284.9,3.64519675]
[1757015902636,0.1432,4285.0,4284.9,3.64519675]
[1757015902823,0.0264,4285.0,4284.9,3.76199675]
[1757015905026,0.0264,4285.0,4284.9,4.55399675]
[1757015906754,0.0264,4285.0,4284.9,5.65399675]
[1757015910849,0.0264,4285.0,4284.9,8.74754398]
[1757015911647,0.0264,4285.0,4284.9,11.08704395]
[1757015912445,1e-08,4285.0,4284.9,26.25580992]
[1757015918035,1e-08,4285.0,4284.9,30.20780992]
[1757015921469,1e-08,4285.0,4284.9,20.99363357]
[1757015922872,0.001,4285.3,4285.2,3.12561336]
[1757015923080,0.001,4285.5,4285.4,3.12550445]
[1757015923282,1e-08,4286.0,4285.9,18.03441146]
[1757015923457,1e-08,4286.0,4285.9,28.1527318]
[1757015923661,1e-08,4286.0,4285.9,29.3730318]
[1757015924062,1e-08,4286.0,4285.9,29.46654382]
[1757015924260,1e-08,4286.0,4285.9,31.73445179]
[1757015928470,1e-08,4286.0,4285.9,34.07395176]
[1757015929762,1e-08,4286.2,4286.0,6.12517778]
[1757015930095,1e-08,4286.2,4286.1,10.09845458]
[1757015930259,1e-08,4286.2,4286.1,11.29542335]
[1757015930456,1e-08,4286.2,4286.1,8.39303132]
[1757015930678,1e-08,4286.2,4286.1,12.64033132]
[1757015930877,1e-08,4286.2,4286.1,13.10473132]
[1757015931590,1e-08,4286.2,4286.1,13.68013132]
[1757015931976,1e-08,4286.2,4286.1,8.50983132]
[1757015932177,0.09900001,4286.2,4286.1,12.45983132]
[1757015932561,1e-08,4286.2,4286.1,12.45983132]
[1757015932763,0.10170001,4286.2,4286.1,12.45983132]
[1757015933393,1e-08,4286.2,4286.1,13.12843132]
[1757015933693,1e-08,4286.2,4286.1,14.05143132]
[1757015935391,1e-08,4286.2,4286.1,16.39093129]
[1757015938967,1e-08,4286.2,4286.1,15.93233129]
[1757015940161,1e-08,4286.2,4286.1,11.22063129]
[1757015940368,1e-08,4286.2,4286.1,15.16963129]
[1757015940592,1e-08,4286.2,4286.1,15.46693129]
[1757015940793,1e-08,4286.2,4286.1,15.16963129]
[1757015940993,1e-08,4286.2,4286.1,15.46693129]
[1757015941299,1e-08,4286.2,4286.1,16.38993129]
[1757015941471,1e-08,4286.2,4286.1,28.41170212]
[1757015942974,1e-08,4286.8,4286.7,6.12479679]
[1757015943277,1e-08,4286.8,4286.7,23.05713412]
[1757015943479,1e-08,4286.8,4286.7,15.48675713]
[1757015943678,0.09900001,4286.8,4286.7,21.4769571]
[1757015943887,0.10170001,4286.8,4286.7,21.4769571]
[1757015944091,0.10170001,4286.8,4286.7,21.8537571]
[1757015944291,0.55730001,4286.8,4286.7,10.90366326]
[1757015944506,0.55730001,4286.8,4286.7,21.8537571]
[1757015944992,1e-08,4286.8,4286.7,22.1510571]
[1757015945396,1e-08,4286.8,4286.7,23.0740571]
[1757015945906,1e-08,4286.8,4286.7,22.6154571]
[1757015946606,0.09900001,4286.8,4286.7,21.8537571]
[1757015946806,0.09900001,4286.8,4286.7,7.11166326]
[1757015946975,0.09900001,4286.8,4286.7,14.05966326]
[1757015947175,0.55460001,4286.8,4286.7,14.05966326]
[1757015947401,0.55460001,4286.8,4286.7,13.21389676]
[1757015947914,0.55460001,4286.8,4286.7,10.21389676]
[1757015948118,0.92860001,4286.8,4286.7,10.21389676]
[1757015948424,0.92860001,4286.8,4286.7,3.92639679]
[1757015948572,0.92860001,4286.8,4286.7,3.80959679]
[1757015949235,0.92860001,4286.8,4286.7,0.3768]
[1757015949405,3.0,4286.7,4285.8,0.004]
[1757015949587,2.33336474,4285.7,4285.0,0.70569612]
[1757015949904,0.2872,4285.1,4284.9,0.004]
[1757015950277,0.1877,4285.0,4284.9,0.004]
[1757015950679,0.4739,4285.0,4284.9,0.004]
[1757015951405,0.4739,4285.0,4284.9,2.33777675]
[1757015951406,0.2862,4285.0,4284.9,2.33777675]
[1757015951605,2.08498688,4285.6,4285.5,2.33345]
[1757015951606,1.719,4285.6,4285.5,2.33345]
[1757015951783,2.1938,4285.6,4285.5,2.33345]
[1757015952180,2.1938,4285.6,4284.9,1.104]
[1757015952500,0.1896,4285.5,4284.9,0.004]
[1757015952695,0.1896,4285.5,4285.0,2.33371201]
[1757015952899,0.2843,4285.1,4285.0,2.33371201]
[1757015953098,0.4749,4285.1,4285.0,2.33371201]
[1757015953408,0.2843,4285.1,4285.0,2.33371201]
[1757015954518,0.4749,4285.1,4285.0,2.33371201]
[1757015955439,0.2843,4285.1,4285.0,2.33372228]
[1757015957018,1.719,4285.6,4285.5,2.33345]
[1757015957187,1.818,4285.6,4285.4,2.33349964]
[1757015957389,1.818,4285.6,4285.5,2.33345]
[1757015957892,1.719,4285.6,4285.5,2.62145]
[1757015958527,1.818,4285.6,4285.5,2.33345]
[1757015958698,1.719,4285.6,4285.5,2.33345]
[1757015959016,1.8207,4285.6,4285.5,2.33345]
[1757015959386,0.473,4285.6,4285.5,2.33345]
[1757015959587,1.72,4286.3,4285.2,1.5388]
[1757015959811,0.1168,4285.9,4285.8,2.33328666]
[1757015960123,0.2212,4285.9,4285.8,2.33328666]
[1757015960422,0.1044,4285.9,4285.8,2.33328666]
[1757015960892,4.0648,4286.1,4286.0,2.33317778]
[1757015961220,1.72,4286.3,4286.2,2.33306891]
[1757015962200,0.1168,4286.5,4286.3,2.33299194]
[1757015962407,1e-08,4286.8,4286.3,0.457]
[1757015962614,1e-08,4286.8,4286.2,0.1168]
[1757015962804,1e-08,4286.8,4286.3,1.1]
[1757015963000,1e-08,4286.8,4286.7,2.62079679]
[1757015963826,1e-08,4286.8,4286.7,3.07779679]
[1757015964594,1e-08,4286.8,4286.7,2.33279679]
[1757015964802,0.00100001,4286.8,4286.7,2.33279679]
[1757015965004,0.10000001,4286.8,4286.7,2.33279679]
[1757015965300,0.00100001,4286.8,4286.7,2.33279679]
[1757015965504,0.00100001,4286.8,4286.7,3.51659679]
[1757015966407,0.00100001,4286.8,4286.7,4.61659679]
[1757015966638,0.00100001,4286.8,4286.7,3.43279679]
[1757015966841,0.00100001,4286.8,4286.7,3.72079679]
[1757015967139,0.00100001,4286.8,4286.7,3.43279679]
[1757015967342,0.00100001,4286.8,4286.6,2.33284274]
[1757015967343,0.10000001,4286.8,4286.6,2.33284274]
[1757015967546,0.10000001,4286.8,4286.4,2.33949997]
[1757015967547,0.1168,4286.7,4286.4,2.33949997]
[1757015967744,0.1168,4286.7,4286.6,0.288]
[1757015967943,0.1168,4286.7,4286.6,2.33285121]
[1757015968240,1.72100001,4286.8,4286.7,2.33279679]
[1757015968442,1.82000001,4286.8,4286.7,2.33279679]
[1757015968943,1.82000001,4286.8,4286.6,2.3328424]
[1757015969150,1.82000001,4286.8,4286.5,2.33949997]
[1757015969361,0.374,4286.7,4286.5,2.33949997]
[1757015969649,0.1168,4286.6,4286.5,2.33949997]
[1757015969946,0.5898,4286.6,4286.5,2.33949997]
[1757015970246,0.2185,4286.6,4286.5,2.33949997]
[1757015971246,0.2185,4286.6,4286.5,4.6724056]
[1757015972358,0.1168,4286.6,4286.5,4.6724056]
[1757015972555,1.72100001,4286.8,4286.7,2.33279679]
[1757015972912,1.82000001,4286.8,4286.7,2.33279679]
[1757015973350,1.82000001,4286.8,4286.5,4.6724056]
[1757015973351,1.82000001,4286.8,4286.5,2.33949997]
[1757015973552,1.82000001,4286.8,4286.6,2.33285121]
[1757015973920,1.82000001,4286.8,4286.7,2.33279679]
[1757015974249,1.82000001,4286.8,4286.5,2.33949997]
[1757015974450,0.1168,4286.6,4286.5,4.67238879]
[1757015974653,0.1168,4286.6,4286.5,4.96038879]
[1757015974854,1.72100001,4286.8,4286.7,2.33279679]
[1757015974855,1.73790001,4286.8,4286.7,2.33279679]
[1757015975060,1.73790001,4286.8,4286.7,4.67229676]
[1757015975553,1.73790001,4286.8,4286.7,7.50929532]
[1757015975554,0.01790001,4286.8,4286.7,7.50929532]
[1757015975719,0.001,4286.9,4286.8,3.12474237]
[1757015975922,0.001,4286.9,4286.8,9.89156976]
[1757015976154,0.001,4287.1,4287.0,3.12463354]
[1757015976322,0.001,4287.1,4287.0,10.75536781]
[1757015976526,0.001,4287.1,4287.0,11.91584148]
[1757015976828,0.001,4287.1,4287.0,13.01584148]
[1757015977254,0.001,4287.1,4287.0,16.96284148]
[1757015979365,0.001,4287.1,4287.0,16.95384148]
[1757015980343,0.001,4287.1,4287.0,5.77213351]
[1757015980742,0.001,4287.1,4287.0,11.70203351]
[1757015980940,0.001,4287.1,4287.0,11.81883351]
[1757015981142,0.001,4287.1,4287.0,9.47933354]
[1757015981346,0.001,4287.1,4287.0,11.81883351]
[1757015981542,0.001,4287.1,4287.0,13.30843095]
[1757015982345,0.001,4287.1,4287.0,3.84313354]
[1757015982544,0.001,4287.1,4287.0,3.54943354]
[1757015983129,0.1,4287.1,4287.0,3.54943354]